bitfinex/quotes_BTCUSD_20230106
["timestamp","ask_amount","ask_price","bid_price","bid_amount"]
[1673014366923,0.77546785,16766.0,16765.0,2.18759412]
[1673014367150,0.77546785,16766.0,16765.0,1.57501312]
[1673014367669,0.17902285,16766.0,16765.0,1.57501312]
[1673014368300,0.17902285,16766.0,16765.0,2.18759412]
[1673014370945,0.62618482,16766.0,16765.0,2.18759412]
[1673014371229,0.17902285,16766.0,16765.0,1.602461]
[1673014371736,0.17902285,16766.0,16765.0,2.18759412]
[1673014371970,0.17902285,16766.0,16765.0,1.602461]
[1673014372239,0.17902285,16766.0,16765.0,1.57501312]
[1673014372751,0.17902285,16766.0,16765.0,2.18759412]
[1673014373045,0.62615965,16766.0,16765.0,2.18759412]
[1673014375670,0.62615965,16766.0,16765.0,0.98988]
[1673014375941,0.17902285,16766.0,16765.0,0.98988]
[1673014376723,0.62611216,16766.0,16765.0,0.98988]
[1673014377009,0.62611216,16766.0,16765.0,0.99058725]
[1673014377010,0.17902285,16766.0,16765.0,0.99058725]
[1673014377553,0.77546785,16766.0,16765.0,0.98988]
[1673014378617,0.17902285,16766.0,16765.0,0.98988]
[1673014379401,0.17902285,16766.0,16765.0,1.602461]
[1673014379655,0.17902285,16766.0,16765.0,0.35559218]
[1673014379963,1.90856589,16766.0,16765.0,0.1796]
[1673014382122,2.52114689,16766.0,16765.0,0.1796]
[1673014383996,1.90856589,16766.0,16765.0,0.1796]
[1673014384797,1.90856589,16766.0,16765.0,0.75792737]
[1673014385066,0.77546785,16766.0,16765.0,0.75792737]
[1673014386125,1.37191285,16766.0,16765.0,0.75792737]
[1673014386987,1.90856589,16766.0,16765.0,0.75792737]
[1673014387254,1.31212089,16766.0,16765.0,0.75792737]
[1673014387529,0.77546785,16766.0,16765.0,0.75792737]
[1673014387791,0.17902285,16766.0,16765.0,0.75792737]
[1673014388054,0.17902285,16766.0,16765.0,1.95564149]
[1673014388326,0.62628473,16766.0,16765.0,1.95564149]
[1673014389355,0.17902285,16766.0,16765.0,1.37050837]
[1673014389624,0.17902285,16766.0,16765.0,0.75792737]
[1673014389881,0.77546785,16766.0,16765.0,0.75792737]
[1673014390411,1.31212089,16766.0,16765.0,1.37050837]
[1673014390660,0.77546785,16766.0,16765.0,1.37050837]
[1673014391470,1.31212089,16766.0,16765.0,1.37050837]
[1673014393928,1.90856589,16766.0,16765.0,1.37050837]
[1673014394187,1.90856589,16766.0,16765.0,0.00192553]
[1673014394188,1.90882466,16766.0,16765.0,0.00192553]
[1673014394481,1.98546454,16766.0,16765.0,0.00192553]
[1673014395020,2.58190954,16766.0,16765.0,0.00192553]
[1673014395789,3.11880079,16766.0,16765.0,0.00192553]
[1673014396048,2.52235579,16766.0,16765.0,0.00192553]
[1673014397146,2.52235579,16766.0,16765.0,0.65537952]
[1673014397147,1.9088041,16766.0,16765.0,0.65537952]
[1673014399464,1.9328041,16766.0,16765.0,0.65537952]
[1673014402563,0.79946785,16766.0,16765.0,1.44556052]
[1673014402776,0.20302285,16766.0,16765.0,1.44556052]
[1673014403222,0.20302285,16766.0,16765.0,2.03053005]
[1673014403629,0.79946785,16766.0,16765.0,1.44556052]
[1673014403886,1.3363591,16766.0,16765.0,1.44556052]
[1673014404137,0.20302285,16766.0,16765.0,1.44556052]
[1673014404864,0.20302285,16766.0,16765.0,2.03047543]
[1673014406563,0.65045164,16766.0,16765.0,2.03047543]
[1673014407053,1.00836319,16766.0,16765.0,2.20757543]
[1673014407802,1.0083642,16766.0,16765.0,2.20757543]
[1673014408267,0.65045164,16766.0,16765.0,2.20757543]
[1673014408502,0.65045164,16766.0,16765.0,2.20747598]
[1673014408829,1.00833281,16766.0,16765.0,2.20747598]
[1673014409031,0.65045164,16766.0,16765.0,2.20747598]
[1673014409287,0.51545164,16766.0,16765.0,2.2056499]
[1673014409546,0.52645164,16766.0,16765.0,2.2396499]
[1673014409794,0.07902285,16766.0,16765.0,1.65473499]
[1673014411823,0.07902285,16766.0,16765.0,2.23965044]
[1673014412062,0.52637725,16766.0,16765.0,2.23965044]
[1673014412658,0.88423104,16766.0,16765.0,2.23965044]
[1673014412827,0.88423104,16766.0,16765.0,2.83613044]
[1673014415432,0.88423104,16766.0,16765.0,2.23965044]
[1673014415902,0.52637725,16766.0,16765.0,2.23965044]
[1673014416160,0.8841952,16766.0,16765.0,2.23965044]
[1673014416428,0.52637725,16766.0,16765.0,1.65473499]
[1673014417201,0.52637725,16766.0,16765.0,1.47713499]
[1673014417714,0.52637725,16766.0,16765.0,0.86455399]
[1673014419003,0.07902285,16766.0,16765.0,0.86455399]
[1673014419235,0.07902285,16766.0,16765.0,1.47713499]
[1673014420041,0.5262807,16766.0,16765.0,1.47713499]
[1673014420510,0.5262807,16766.0,16765.0,2.06210416]
[1673014420777,0.07902285,16766.0,16765.0,1.47713499]
[1673014421028,1.19087998,16766.0,16765.0,0.034]
[1673014421292,1.72777123,16766.0,16765.0,0.034]
[1673014421548,2.32421623,16766.0,16765.0,0.034]
[1673014423401,2.92066123,16766.0,16765.0,0.034]
[1673014423651,2.38376998,16766.0,16765.0,0.034]
[1673014424955,2.99635098,16766.0,16765.0,0.034]
[1673014427690,2.92041175,16766.0,16765.0,0.73205866]
[1673014428222,1.80855462,16766.0,16765.0,0.73205866]
[1673014429002,1.27191285,16766.0,16765.0,0.73205866]
[1673014429264,0.67546785,16766.0,16765.0,0.73205866]
[1673014429529,0.07902285,16766.0,16765.0,0.73205866]
[1673014429753,0.52619314,16766.0,16765.0,0.73205866]
[1673014430303,0.52619314,16766.0,16765.0,1.31691767]
[1673014430586,0.52619314,16766.0,16765.0,1.92949867]
[1673014430828,0.88391254,16766.0,16765.0,1.92949867]
[1673014431336,1.10817295,16766.0,16765.0,2.00472001]
[1673014431592,0.48213115,16766.0,16765.0,10.40120001]
[1673014431913,0.48213115,16766.0,16765.0,11.04159861]
[1673014432141,0.48213115,16766.0,16765.0,10.40120001]
[1673014432388,0.48213115,16766.0,16765.0,10.41605734]
[1673014433166,0.48213115,16766.0,16765.0,9.51957734]
[1673014433396,0.48213115,16766.0,16765.0,2.60345076]
[1673014433647,0.83981846,16766.0,16765.0,1.99086976]
[1673014433895,0.83981846,16766.0,16765.0,2.60345076]
[1673014434155,0.66100266,16766.0,16765.0,2.00697076]
[1673014434416,0.66091252,16766.0,16765.0,2.00697076]
[1673014434672,0.66091252,16766.0,16765.0,3.00345076]
[1673014435173,0.48201746,16766.0,16765.0,3.30345076]
[1673014436479,0.83973686,16766.0,16765.0,3.00345076]
[1673014437018,1.48025302,16766.0,16765.0,0.646581]
[1673014437265,0.67536333,16766.0,16765.0,0.034]
[1673014439078,0.07891833,16766.0,16765.0,0.034]
[1673014439343,0.52602605,16766.0,16765.0,0.434]
[1673014439875,1.12247105,16766.0,16765.0,0.434]
[1673014441871,1.27180833,16766.0,16765.0,0.434]
[1673014442126,1.71891578,16766.0,16765.0,0.434]
[1673014442397,1.27180833,16766.0,16765.0,0.434]
[1673014442895,1.26680833,16766.0,16765.0,0.434]
[1673014445983,1.8034501,16766.0,16765.0,0.434]
[1673014446265,1.8034501,16766.0,16765.0,0.034]
[1673014446768,2.50707494,16766.0,16765.0,0.034]
[1673014447312,3.11965594,16766.0,16765.0,0.034]
[1673014449321,3.71610094,16766.0,16765.0,0.034]
[1673014455945,3.11965594,16766.0,16765.0,0.034]
[1673014456244,2.50707494,16766.0,16765.0,0.034]
[1673014456727,3.11965594,16766.0,16765.0,0.034]
[1673014458802,3.71610094,16766.0,16765.0,0.034]
[1673014459318,3.11965594,16766.0,16765.0,0.034]
[1673014461761,2.50707494,16766.0,16765.0,0.034]
[1673014465880,0.6105601,16766.0,16765.0,0.57322401]
[1673014466135,0.07391833,16766.0,16765.0,0.57322401]
[1673014467425,0.67036333,16766.0,16765.0,0.57322401]
[1673014467687,1.26680833,16766.0,16765.0,0.57312048]
[1673014467954,1.26680833,16766.0,16765.0,0.03389647]
[1673014468192,1.8034501,16766.0,16765.0,0.03389647]
[1673014468703,1.26680833,16766.0,16765.0,0.03389647]
[1673014469459,1.8034501,16766.0,16765.0,0.03389647]
[1673014470768,1.8034501,16766.0,16765.0,0.560382]
[1673014471012,1.26680833,16766.0,16765.0,0.560382]
[1673014471736,1.8034501,16766.0,16765.0,0.560382]
[1673014472047,1.26680833,16766.0,16765.0,0.560382]
[1673014472290,1.8034501,16766.0,16765.0,0.560382]
[1673014473839,1.8034501,16766.0,16765.0,0.03389647]
[1673014475898,1.8034501,16766.0,16765.0,0.70441834]
[1673014477681,1.8034501,16766.0,16765.0,0.03389647]
[1673014478196,2.4160311,16766.0,16765.0,0.03389647]
[1673014478476,1.8034501,16766.0,16765.0,0.03389647]
[1673014481257,1.26680833,16766.0,16765.0,0.03389647]
[1673014481515,1.80384954,16766.0,16765.0,0.03389647]
[1673014481773,1.26680833,16766.0,16765.0,0.03389647]
[1673014482105,1.80386091,16766.0,16765.0,0.03389647]
[1673014484559,2.41644191,16766.0,16765.0,0.03389647]
[1673014484839,2.3409819,16766.0,16765.0,0.03389647]
[1673014486361,2.3409819,16766.0,16765.0,0.57453123]
[1673014488129,2.3409819,16766.0,16765.0,0.57446435]
[1673014489402,1.7445369,16766.0,16765.0,0.57446435]
[1673014491705,1.1480919,16766.0,16765.0,1.18704535]
[1673014491966,1.1480919,16766.0,16765.0,0.57446435]
[1673014492997,1.7445369,16766.0,16765.0,0.57446435]
[1673014496095,1.7445369,16766.0,16765.0,0.03382959]
[1673014496339,2.3409819,16766.0,16765.0,0.03382959]
[1673014498088,1.80386091,16766.0,16765.0,0.03382959]
[1673014499379,2.34099958,16766.0,16765.0,0.03382959]
[1673014499642,1.80386091,16766.0,16765.0,0.03382959]
[1673014500180,1.74462313,16766.0,16765.0,0.69264475]
[1673014501479,1.14817813,16766.0,16765.0,0.69264475]
[1673014501984,1.74462313,16766.0,16765.0,0.69264475]
[1673014502585,2.34106813,16766.0,16765.0,0.69264475]
[1673014504564,1.80386091,16766.0,16765.0,0.69264475]
[1673014504816,1.80386091,16766.0,16765.0,0.03382959]
[1673014506374,1.74465468,16766.0,16765.0,0.67660183]
[1673014506631,1.74465468,16766.0,16765.0,1.28918283]
[1673014506881,1.74465468,16766.0,16765.0,0.67660183]
[1673014508175,1.74465468,16766.0,16765.0,1.28918283]
[1673014509056,2.34109968,16766.0,16765.0,0.03382959]
[1673014509540,1.80386091,16766.0,16765.0,0.03382959]
[1673014510340,1.74467091,16766.0,16765.0,0.03382959]
[1673014510591,1.80386091,16766.0,16765.0,0.03382959]
[1673014510866,2.34111693,16766.0,16765.0,0.03382959]
[1673014511127,1.80386091,16766.0,16765.0,0.03382959]
[1673014511380,1.87938933,16766.0,16765.0,0.03382959]
[1673014511634,1.26680833,16766.0,16765.0,0.03382959]
[1673014512166,1.26680833,16766.0,16765.0,0.03371954]
[1673014516318,1.87938933,16766.0,16765.0,0.03371954]
[1673014516577,1.26680833,16766.0,16765.0,0.03371954]
[1673014516825,1.87938933,16766.0,16765.0,0.03371954]
[1673014517096,1.77693138,16766.0,16765.0,0.03371954]
[1673014517597,2.38951238,16766.0,16765.0,0.03371954]
[1673014522933,1.77693138,16766.0,16765.0,0.03371954]
[1673014523983,2.37337638,16766.0,16765.0,0.03371954]
[1673014524247,2.98595738,16766.0,16765.0,0.03371954]
[1673014524775,2.38951238,16766.0,16765.0,0.03371954]
[1673014525862,2.98595738,16766.0,16765.0,0.03371954]
[1673014527409,2.38951238,16766.0,16765.0,0.03371954]
[1673014527668,1.77693138,16766.0,16765.0,0.03371954]
[1673014528764,2.37337638,16766.0,16765.0,0.03371954]
[1673014529012,2.90933934,16766.0,16765.0,0.03371954]
[1673014529262,3.52192034,16766.0,16765.0,0.03371954]
[1673014529533,2.98595738,16766.0,16765.0,0.03371954]
[1673014530318,2.38951238,16766.0,16765.0,0.03371954]
[1673014530563,2.3131742,16766.0,16765.0,0.03371954]
[1673014530822,2.9257552,16766.0,16765.0,0.03371954]
[1673014531077,2.8606012,16766.0,16765.0,0.03371954]
[1673014531849,2.3131742,16766.0,16765.0,0.03371954]
[1673014532121,1.77693138,16766.0,16765.0,0.03371954]
[1673014532893,2.38951238,16766.0,16765.0,0.03371954]
[1673014533136,2.38951238,16766.0,16765.0,0.03365481]
[1673014533391,2.38951238,16766.0,16765.0,0.72859999]
[1673014533392,0.58404138,16766.0,16765.0,0.72859999]
[1673014533650,1.71644715,16766.0,16765.0,0.72859999]
[1673014533905,2.31289215,16766.0,16765.0,0.72859999]
[1673014534976,2.31289215,16766.0,16765.0,0.03365481]
[1673014535214,2.92547315,16766.0,16765.0,0.03365481]
[1673014535474,2.38951238,16766.0,16765.0,0.03365481]
[1673014536005,2.92463866,16766.0,16765.0,0.03365481]
[1673014536526,2.38951238,16766.0,16765.0,0.03365481]
[1673014537811,2.92564919,16766.0,16765.0,0.03365481]
[1673014538061,2.38951238,16766.0,16765.0,0.03365481]
[1673014540603,2.98595738,16766.0,16765.0,0.03365481]
[1673014542169,3.52219972,16766.0,16765.0,0.03365481]
[1673014542426,2.98595738,16766.0,16765.0,0.03365481]
[1673014542682,1.87938933,16766.0,16765.0,0.62133858]
[1673014542958,1.80334237,16766.0,16765.0,0.62133858]
[1673014543204,1.80334237,16766.0,16765.0,0.03365481]
[1673014543460,3.67103561,16766.0,16765.0,0.03365481]
[1673014545006,3.07459061,16766.0,16765.0,0.03365481]
[1673014545288,3.67103561,16766.0,16765.0,0.03365481]
[1673014546303,3.07459061,16766.0,16765.0,0.03365481]
[1673014546566,3.61089622,16766.0,16765.0,0.03365481]
[1673014547085,3.83866734,16766.0,16765.0,0.03365481]
[1673014547342,3.67103561,16766.0,16765.0,0.03365481]
[1673014548630,3.07459061,16766.0,16765.0,0.03365481]
[1673014549425,3.61092656,16766.0,16765.0,0.03365481]
[1673014549671,3.24222234,16766.0,16765.0,0.03365481]
[1673014549931,3.07459061,16766.0,16765.0,0.03365481]
[1673014550158,3.61094279,16766.0,16765.0,0.03365481]
[1673014550448,3.77869354,16766.0,16765.0,0.03365481]
[1673014550743,3.61106181,16766.0,16765.0,0.03365481]
[1673014551253,3.24222234,16766.0,16765.0,0.03365481]
[1673014551515,3.07459061,16766.0,16765.0,0.03365481]
[1673014552042,3.61130464,16766.0,16765.0,0.03365481]
[1673014552550,2.99872364,16766.0,16765.0,0.03365481]
[1673014553520,3.61130464,16766.0,16765.0,0.03365481]
[1673014554022,3.61130464,16766.0,16765.0,0.0335552]
[1673014555319,3.07459061,16766.0,16765.0,0.0335552]
[1673014555811,3.07459061,16766.0,16765.0,0.75178933]
[1673014555812,2.41592337,16766.0,16765.0,0.75178933]
[1673014556079,2.34037051,16766.0,16765.0,0.75178933]
[1673014557111,1.80334237,16766.0,16765.0,0.75178933]
[1673014557616,2.34037772,16766.0,16765.0,0.75178933]
[1673014559738,1.14748772,16766.0,16765.0,0.75178933]
[1673014559985,1.14748772,16766.0,16765.0,1.54047033]
[1673014560242,1.14748772,16766.0,16765.0,2.12560345]
[1673014560507,0.61045237,16766.0,16765.0,2.12560345]
[1673014560823,0.61045237,16766.0,16765.0,1.94950345]
[1673014561027,0.61045237,16766.0,16765.0,1.33692245]
[1673014561550,0.61045237,16766.0,16765.0,0.75178933]
[1673014565717,1.05719138,16766.0,16765.0,1.33692245]
[1673014565995,1.05719138,16766.0,16765.0,0.75178933]
[1673014567382,1.05719138,16766.0,16765.0,1.33692245]
[1673014567564,1.05719138,16766.0,16765.0,0.75178933]
[1673014569106,0.61045237,16766.0,16765.0,0.75178933]
[1673014569582,1.05722711,16766.0,16765.0,0.75178933]
[1673014572651,1.05749161,16766.0,16765.0,0.75178933]
[1673014572907,0.61071687,16766.0,16765.0,0.75178933]
[1673014574263,1.05699842,16766.0,16765.0,0.75178933]
[1673014575541,1.20716187,16766.0,16765.0,0.75178933]
[1673014575796,1.65328294,16766.0,16765.0,0.75178933]
[1673014576050,1.20716187,16766.0,16765.0,0.75178933]
[1673014576335,1.65332517,16766.0,16765.0,0.75178933]
[1673014577362,1.65332517,16766.0,16765.0,0.75169858]
[1673014577912,1.20716187,16766.0,16765.0,0.75169858]
[1673014580474,1.20689737,16766.0,16765.0,0.75143408]
[1673014583138,1.20677836,16766.0,16765.0,0.75143408]
[1673014584204,1.05676461,16766.0,16765.0,0.75143408]
[1673014584464,0.61033336,16766.0,16765.0,0.75143408]
[1673014586866,0.61033336,16766.0,16765.0,0.75143408]
[1673014589662,1.14736871,16766.0,16765.0,0.75143408]
[1673014589920,1.74381371,16766.0,16765.0,0.75143408]
[1673014590175,0.61033336,16766.0,16765.0,0.75143408]
[1673014592480,0.61033336,16766.0,16765.0,1.3365672]
[1673014592741,0.61033336,16766.0,16765.0,0.75143408]
[1673014593285,1.14736871,16766.0,16765.0,1.45143408]
[1673014593535,1.74381371,16766.0,16765.0,1.45143408]
[1673014594050,1.14736871,16766.0,16765.0,1.45143408]
[1673014595074,0.61033336,16766.0,16765.0,1.45143408]
[1673014595329,1.14736871,16766.0,16765.0,1.45143408]
[1673014595591,0.61033336,16766.0,16765.0,1.45143408]
[1673014597394,1.14736871,16766.0,16765.0,1.45143408]
[1673014598706,1.74381371,16766.0,16765.0,1.45143408]
[1673014598964,1.14736871,16766.0,16765.0,1.45143408]
[1673014599222,1.14736871,16766.0,16765.0,0.75143408]
[1673014600275,1.14736871,16766.0,16765.0,1.45143408]
[1673014600795,2.35639471,16766.0,16765.0,1.45143408]
[1673014601340,1.74381371,16766.0,16765.0,1.45143408]
[1673014601587,1.74381371,16766.0,16765.0,0.75143408]
[1673014604163,1.74381371,16766.0,16765.0,0.75133597]
[1673014604933,2.35639471,16766.0,16765.0,0.75133597]
[1673014605190,1.81986067,16766.0,16765.0,0.75133597]
[1673014605444,1.81986067,16766.0,16765.0,1.45133597]
[1673014605692,1.20727967,16766.0,16765.0,1.45133597]
[1673014606306,0.61083467,16766.0,16765.0,1.45133597]
[1673014606994,1.20727967,16766.0,16765.0,0.73310184]
[1673014607247,1.81986067,16766.0,16765.0,0.73310184]
[1673014607798,2.44838658,16766.0,16765.0,0.73310184]
[1673014608298,3.64854637,16766.0,16765.0,0.73310184]
[1673014608557,3.64854637,16766.0,16765.0,0.03310184]
[1673014609867,4.20198905,16766.0,16765.0,0.03310184]
[1673014610155,3.76590599,16766.0,16765.0,0.03310184]
[1673014610450,3.64898757,16766.0,16765.0,0.03310184]
[1673014611222,3.58179326,16766.0,16765.0,0.03310184]
[1673014612243,3.64898757,16766.0,16765.0,0.03310184]
[1673014618864,3.64898757,16766.0,16765.0,0.02932634]
[1673014620092,3.04483158,16766.0,16765.0,0.02932634]
[1673014620598,3.64898757,16766.0,16765.0,0.02932634]
[1673014624140,4.20236604,16766.0,16765.0,0.02932634]
[1673014624424,4.21086604,16766.0,16765.0,0.02932634]
[1673014624921,3.65748757,16766.0,16765.0,0.02932634]
[1673014625173,4.21088216,16766.0,16765.0,0.02932634]
[1673014625470,4.37851389,16766.0,16765.0,0.02932634]
[1673014626484,4.11459723,16766.0,16765.0,0.02932634]
[1673014626785,4.81459723,16766.0,16765.0,0.02007931]
[1673014627075,4.45023657,16766.0,16765.0,0.02007931]
[1673014627329,3.55934164,16766.0,16765.0,0.02007931]
[1673014627603,3.55934164,16766.0,16763.0,0.01482306]
[1673014627604,4.64108614,16766.0,16763.0,0.01482306]
[1673014627869,0.53630707,16764.0,16763.0,0.01482306]
[1673014628118,1.19289654,16764.0,16763.0,0.01482306]
[1673014628387,2.98244454,16764.0,16763.0,0.01482306]
[1673014628640,2.36986354,16764.0,16763.0,0.01482306]
[1673014628895,2.98244454,16764.0,16763.0,0.01482306]
[1673014630201,2.98244454,16764.0,16763.0,0.01682306]
[1673014630202,3.7428092,16764.0,16763.0,0.01682306]
[1673014633759,4.19603452,16764.0,16763.0,0.01682306]
[1673014635015,3.7428092,16764.0,16763.0,0.01682306]
[1673014637784,3.40773014,16764.0,16763.0,0.01682306]
[1673014638026,3.20650213,16764.0,16763.0,0.01682306]
[1673014638542,3.74277318,16764.0,16763.0,0.01682306]
[1673014647718,3.14625718,16764.0,16763.0,0.01682306]
[1673014647962,0.77652447,16764.0,16763.0,0.52401341]
[1673014648473,0.77652447,16764.0,16763.0,0.52395181]
[1673014649454,1.37304047,16764.0,16763.0,0.52395181]
[1673014650188,0.77652447,16764.0,16763.0,0.52395181]
[1673014650957,1.90931152,16764.0,16763.0,0.01676146]
[1673014651211,2.43338096,16764.0,16763.0,0.01676146]
[1673014651980,3.02989696,16764.0,16763.0,0.01676146]
[1673014652294,2.43338096,16764.0,16763.0,0.01676146]
[1673014657165,2.49362591,16764.0,16763.0,0.01676146]
[1673014657713,3.10620691,16764.0,16763.0,0.01676146]
[1673014658476,2.49362591,16764.0,16763.0,0.01676146]
[1673014658992,3.10620691,16764.0,16763.0,0.01676146]
[1673014660350,2.49362591,16764.0,16763.0,0.01676146]
[1673014660875,3.10620691,16764.0,16763.0,0.01676146]
[1673014661151,3.70955087,16764.0,16763.0,0.01676146]
[1673014661424,3.5368133,16764.0,16763.0,0.01676146]
[1673014661668,4.14015726,16764.0,16763.0,0.01676146]
[1673014661926,3.5368133,16764.0,16763.0,0.01676146]
[1673014662749,3.70955087,16764.0,16763.0,0.01676146]
[1673014662995,3.10620691,16764.0,16763.0,0.01676146]
[1673014663774,2.49362591,16764.0,16763.0,0.01676146]
[1673014665114,3.10620691,16764.0,16763.0,0.01676146]
[1673014667547,3.70955087,16764.0,16763.0,0.01676146]
[1673014667777,4.14015726,16764.0,16763.0,0.01676146]
[1673014668312,4.16927953,16764.0,16763.0,0.01676146]
[1673014668597,4.30788688,16764.0,16763.0,0.01676146]
[1673014670103,4.30788688,16764.0,16763.0,0.01667391]
[1673014672154,3.87728049,16764.0,16763.0,0.01667391]
[1673014672408,3.87728049,16764.0,16763.0,0.01500652]
[1673014674234,3.27393653,16764.0,16763.0,0.01500652]
[1673014678308,2.58213747,16764.0,16763.0,0.01500652]
[1673014678531,3.21605269,16764.0,16763.0,0.01500652]
[1673014678788,3.65506926,16764.0,16763.0,0.01500652]
[1673014679043,3.02115404,16764.0,16763.0,0.01500652]
[1673014680092,3.60628716,16764.0,16763.0,0.01500652]
[1673014680353,3.96998716,16764.0,16763.0,0.01500652]
[1673014681133,4.66998716,16764.0,16763.0,0.01500652]
[1673014681388,4.36998716,16764.0,16763.0,0.01500652]
[1673014683464,4.36998716,16764.0,16763.0,0.01000652]
[1673014683974,4.66998716,16764.0,16763.0,0.01000652]
[1673014684458,4.36998716,16764.0,16763.0,0.01000652]
[1673014685768,3.93097059,16764.0,16763.0,0.01000652]
[1673014687340,3.93097059,16764.0,16763.0,0.01000652]
[1673014688112,3.96660993,16764.0,16763.0,0.01000652]
[1673014688407,4.8605576,16764.0,16763.0,0.01000652]
[1673014688895,5.03458633,16764.0,16763.0,0.00370959]
[1673014689152,4.99894699,16764.0,16763.0,0.00370959]
[1673014689399,5.59282412,16764.0,16763.0,0.00370959]
[1673014689652,5.76902412,16764.0,16763.0,0.00370959]
[1673014692420,5.46902412,16764.0,16763.0,0.00370959]
[1673014692672,5.76902412,16764.0,16763.0,0.00370959]
[1673014692929,5.46902412,16764.0,16763.0,0.00370959]
[1673014693180,5.76902412,16764.0,16763.0,0.00370959]
[1673014696888,5.76902412,16764.0,16763.0,0.00266654]
[1673014697687,5.46902412,16764.0,16763.0,0.00266654]
[1673014698193,5.76902412,16764.0,16763.0,0.00266654]
[1673014698450,5.46894329,16764.0,16763.0,0.00266654]
[1673014699020,5.46894329,16764.0,16763.0,0.00093557]
[1673014699781,5.29134329,16764.0,16763.0,0.00093557]
[1673014700570,5.11514329,16764.0,16763.0,0.00093557]
[1673014701622,4.52126616,16764.0,16763.0,0.00093557]
[1673014702150,3.92731849,16764.0,16763.0,0.00093557]
[1673014702976,4.22731849,16764.0,16763.0,0.00093557]
[1673014704840,4.22731849,16764.0,16763.0,0.00067369]
[1673014708959,0.4,16763.0,16762.0,0.01378519]
[1673014709210,3.20831185,16763.0,16762.0,0.01378519]
[1673014709499,3.38234058,16763.0,16762.0,0.01378519]
[1673014710517,3.51734058,16763.0,16762.0,0.01578519]
[1673014711264,4.1024737,16763.0,16762.0,0.01578519]
[1673014711530,4.4024737,16763.0,16762.0,0.01578519]
[1673014711805,4.1024737,16763.0,16762.0,0.01578519]
[1673014712048,5.38556071,16763.0,16762.0,0.01578519]
[1673014712837,5.25056071,16763.0,16762.0,0.00938423]
[1673014713090,5.38656071,16763.0,16762.0,0.00938423]
[1673014713351,5.4305469,16763.0,16762.0,0.00938423]
[1673014713596,5.5675469,16763.0,16762.0,0.00938423]
[1673014716113,5.53190756,16763.0,16762.0,0.00938423]
[1673014717911,6.41035691,16763.0,16762.0,0.00938423]
[1673014718659,5.53190756,16763.0,16762.0,0.00938423]
[1673014718931,5.53190756,16763.0,16762.0,0.00744581]
[1673014719948,5.06917571,16763.0,16762.0,0.00744581]
[1673014720200,4.89157571,16763.0,16762.0,0.00744581]
[1673014720963,4.89157571,16763.0,16762.0,0.00537089]
[1673014723746,5.77002506,16763.0,16762.0,0.00537089]
[1673014724263,5.10481505,16763.0,16762.0,8.9e-07]
[1673014724523,5.87489218,16763.0,16761.0,0.01]
[1673014724811,3.72955275,16762.0,16761.0,0.01]
[1673014725048,4.72613975,16762.0,16761.0,0.01]
[1673014725263,5.91931375,16762.0,16761.0,0.01]
[1673014726544,6.05531375,16762.0,16761.0,0.01]
[1673014726802,6.64919088,16762.0,16761.0,0.01]
[1673014727536,6.64919088,16762.0,16759.0,0.01684424]
[1673014727537,0.4,16761.0,16759.0,0.01684424]
[1673014727785,3.92577831,16760.0,16759.0,0.01684424]
[1673014728312,3.33807392,16760.0,16759.0,0.01684424]
[1673014728538,3.58999341,16760.0,16759.0,0.01684424]
[1673014729034,4.37491689,16760.0,16759.0,0.01515982]
[1673014729280,4.33334957,16760.0,16759.0,0.01515982]
[1673014729532,4.46934957,16760.0,16759.0,0.01015982]
[1673014730280,3.90002214,16760.0,16759.0,0.01015982]
[1673014730506,4.29787439,16760.0,16759.0,0.01015982]
[1673014730756,4.47190312,16760.0,16759.0,0.01015982]
[1673014732038,4.29787439,16760.0,16759.0,0.01015982]
[1673014732283,3.72599341,16760.0,16759.0,0.01015982]
[1673014732787,3.65674689,16760.0,16759.0,0.01015982]
[1673014733051,3.12254519,16760.0,16759.0,0.01015982]
[1673014733587,3.70767831,16760.0,16759.0,0.01015982]
[1673014733832,3.55105302,16760.0,16759.0,0.01015982]
[1673014734661,4.13618614,16760.0,16759.0,0.01015982]
[1673014734865,4.61021487,16760.0,16759.0,0.01015982]
[1673014735631,4.61021487,16760.0,16759.0,0.00736285]
[1673014735632,3.72508175,16760.0,16759.0,0.00736285]
[1673014735891,3.85105302,16760.0,16759.0,0.00726173]
[1673014736154,3.55105302,16760.0,16759.0,0.00726173]
[1673014736916,4.13618614,16760.0,16759.0,0.00726173]
[1673014737233,4.81021487,16760.0,16759.0,0.00726173]
[1673014737491,4.80990487,16760.0,16759.0,0.00726173]
[1673014738020,4.31795985,16760.0,16759.0,0.00726173]
[1673014739072,4.15323097,16760.0,16759.0,0.00642823]
[1673014739323,4.13001684,16760.0,16759.0,0.00642823]
[1673014739613,4.30404557,16760.0,16759.0,0.00642823]
[1673014739895,4.15332172,16760.0,16759.0,0.00642823]
[1673014740203,4.70255872,16760.0,16759.0,0.00642823]
[1673014740464,4.32735045,16760.0,16759.0,0.00642823]
[1673014740730,4.15332172,16760.0,16759.0,0.00642823]
[1673014740983,4.60990487,16760.0,16759.0,0.00642823]
[1673014742852,3.72477175,16760.0,16759.0,0.00642823]
[1673014743112,4.26219992,16760.0,16759.0,0.00642823]
[1673014743368,4.43622865,16760.0,16759.0,0.00642823]
[1673014743613,4.86498325,16760.0,16759.0,0.00642823]
[1673014743863,5.03901198,16760.0,16759.0,0.00642823]
[1673014745426,4.32755508,16760.0,16759.0,0.00642823]
[1673014745664,3.72477175,16760.0,16759.0,0.00642823]
[1673014745921,3.55074302,16760.0,16759.0,0.00642823]
[1673014746173,4.37310078,16760.0,16759.0,0.00642823]
[1673014746693,3.72517015,16760.0,16759.0,0.00642823]
[1673014746947,3.12223519,16760.0,16759.0,0.00642823]
[1673014747190,3.67192154,16760.0,16759.0,0.00642823]
[1673014747442,4.11417657,16760.0,16759.0,0.00642823]
[1673014747727,4.2882053,16760.0,16759.0,0.00642823]
[1673014748191,4.71728325,16760.0,16759.0,0.00642823]
[1673014748716,4.27502822,16760.0,16759.0,0.00642823]
[1673014749242,3.67192154,16760.0,16759.0,0.00642823]
[1673014749474,4.26502822,16760.0,16759.0,0.00642823]
[1673014750024,4.26502822,16760.0,16759.0,0.00578541]
[1673014750838,3.66192154,16760.0,16759.0,0.00578541]
[1673014751091,3.71941122,16760.0,16759.0,0.00578541]
[1673014751599,3.72791122,16760.0,16759.0,0.00578541]
[1673014751852,4.34061022,16760.0,16759.0,0.00578541]
[1673014752108,3.72791122,16760.0,16759.0,0.00578541]
[1673014752931,4.34061022,16760.0,16759.0,0.00578541]
[1673014753675,3.72791122,16760.0,16759.0,0.00578541]
[1673014757340,3.12480454,16760.0,16759.0,0.00578541]
[1673014757805,3.72791122,16760.0,16759.0,0.00578541]
[1673014758586,4.34061022,16760.0,16759.0,0.00578541]
[1673014759855,4.94163459,16760.0,16759.0,0.00578541]
[1673014760110,4.47757357,16760.0,16759.0,0.00520687]
[1673014761668,4.04849562,16760.0,16759.0,0.00520687]
[1673014761934,3.87446689,16760.0,16759.0,0.00520687]
[1673014762209,3.18781719,16760.0,16759.0,0.00520687]
[1673014762470,3.79719438,16760.0,16759.0,0.00520687]